bitfinex-derivatives/quotes_BTCF0:USTF0_20260214
["timestamp","ask_amount","ask_price","bid_price","bid_amount"]
[1771108503257,0.05351178,70017.0,69993.0,0.014294]
[1771108503455,0.014293,69999.0,69993.0,0.014294]
[1771108503651,0.01432,69998.0,69993.0,0.014294]
[1771108503850,0.028614,69998.0,69993.0,0.014294]
[1771108504054,0.02532139,69998.0,69993.0,0.014294]
[1771108504954,0.02532139,69998.0,69992.0,0.014295]
[1771108505153,0.02532139,69998.0,69993.0,0.014294]
[1771108507459,0.014294,69995.0,69987.0,0.014296]
[1771108507657,0.02532139,69998.0,69993.0,0.014294]
[1771108510266,0.014294,69997.0,69992.0,0.014295]
[1771108511163,0.01432,69996.0,69993.0,0.014294]
[1771108511363,0.01432,69995.0,69993.0,0.014294]
[1771108512569,2.8e-07,70000.0,69996.0,0.014294]
[1771108512773,0.01432028,70000.0,69997.0,0.014294]
[1771108513069,0.014293,70003.0,69997.0,0.014294]
[1771108513378,0.01432,70002.0,69997.0,0.014294]
[1771108513570,0.028613,70002.0,69997.0,0.014294]
[1771108514267,0.01432,70002.0,69997.0,0.014294]
[1771108514570,0.028613,70002.0,69997.0,0.014294]
[1771108515071,0.014293,70001.0,69996.0,0.014294]
[1771108515271,0.014293,70001.0,69997.0,0.014294]
[1771108516576,0.01432,70002.0,69998.0,0.014293]
[1771108519172,0.01432,70002.0,69997.0,0.014294]
[1771108519471,0.01432,70002.0,69996.0,0.014294]
[1771108520574,0.014293,70001.0,69994.0,0.014294]
[1771108520878,0.014293,70000.0,69994.0,0.014294]
[1771108521069,0.01432,69999.0,69994.0,0.014294]
[1771108521571,0.028613,69999.0,69994.0,0.014294]
[1771108523376,0.028613,69999.0,69993.0,0.014294]
[1771108524872,0.028613,69999.0,69994.0,0.014294]
[1771108526778,0.028613,69999.0,69993.0,0.014294]
[1771108527880,0.042906,69999.0,69993.0,0.014294]
[1771108530373,0.014293,69998.0,69993.0,0.014294]
[1771108533380,0.014294,69997.0,69992.0,0.028615]
[1771108534281,0.014294,69997.0,69992.0,0.04291]
[1771108534678,0.028613,69999.0,69993.0,0.014294]
[1771108534980,0.01432,69999.0,69993.0,0.014294]
[1771108535783,0.014294,69998.0,69993.0,0.014294]
[1771108540184,0.014294,69998.0,69992.0,0.01432]
[1771108540185,0.014292,70003.0,69998.0,0.014293]
[1771108540383,0.014293,70003.0,69997.0,0.028614]
[1771108542592,0.014293,70002.0,69997.0,0.028614]
[1771108544593,0.014293,70001.0,69997.0,0.01432]
[1771108544796,0.014294,69997.0,69991.0,0.12386308]
[1771108544991,0.028588,69997.0,69991.0,0.12386308]
[1771108545593,0.028588,69997.0,69992.0,0.12388808]
[1771108545793,0.014294,69997.0,69992.0,0.12388808]
[1771108546193,0.01332507,69997.0,69992.0,0.12388808]
[1771108546692,0.01332507,69997.0,69992.0,0.13818308]
[1771108547297,0.01332507,69997.0,69992.0,0.12388808]
[1771108547999,0.014294,69996.0,69992.0,0.12388808]
[1771108548894,0.014294,69997.0,69992.0,0.12388808]
[1771108549095,0.014293,70001.0,69993.0,0.014294]
[1771108549898,0.014293,70001.0,69993.0,0.028588]
[1771108550594,0.014293,70001.0,69996.0,0.014294]
[1771108550794,0.014293,70001.0,69996.0,0.028614]
[1771108551398,0.014293,70002.0,69996.0,0.028614]
[1771108551999,0.028586,70002.0,69996.0,0.028614]
[1771108552403,0.014293,70002.0,69996.0,0.028614]
[1771108553698,0.028586,70002.0,69996.0,0.028614]
[1771108553997,0.014293,70002.0,69996.0,0.028614]
[1771108554499,0.014293,70002.0,69996.0,0.01432]
[1771108554901,0.014293,70002.0,69996.0,0.028614]
[1771108555305,0.014293,70001.0,69997.0,0.014294]
[1771108555801,0.014293,70002.0,69997.0,0.014294]
[1771108557506,0.028586,70002.0,69997.0,0.014294]
[1771108557706,0.014293,70001.0,69996.0,0.042908]
[1771108557901,0.014293,70001.0,69997.0,0.014294]
[1771108559210,0.014293,70001.0,69996.0,0.042908]
[1771108559411,0.014293,70002.0,69997.0,0.014294]
[1771108561117,0.014293,70001.0,69997.0,0.014294]
[1771108561419,0.01432,70004.0,69999.0,0.014293]
[1771108561613,0.01432,70004.0,70000.0,0.014293]
[1771108562615,0.01532,70004.0,70000.0,0.014293]
[1771108564021,0.01432,70004.0,70000.0,0.014293]
[1771108564321,0.014293,70003.0,69998.0,0.014293]
[1771108564522,0.014292,70003.0,69998.0,0.028586]
[1771108564722,0.014292,70003.0,69996.0,0.01432]
[1771108564922,0.014292,70003.0,69998.0,0.014293]
[1771108565123,0.028612,70004.0,69999.0,0.014293]
[1771108565525,0.042904,70004.0,69999.0,0.014293]
[1771108565823,0.028612,70004.0,69999.0,0.014293]
[1771108566024,0.042904,70004.0,69999.0,0.014293]
[1771108566218,0.014295,69993.0,69989.0,0.01432]
[1771108566425,0.014294,69995.0,69987.0,0.028616]
[1771108566624,0.014295,69993.0,69988.0,0.014296]
[1771108566814,0.014295,69993.0,69987.0,0.028616]
[1771108567722,0.02859,69993.0,69987.0,0.028616]
[1771108567921,0.014295,69992.0,69987.0,0.028616]
[1771108568722,0.014292,70008.0,69998.0,0.10956808]
[1771108568919,0.014292,70005.0,69998.0,0.014293]
[1771108569114,0.014292,70004.0,69997.0,0.028614]
[1771108569422,0.014292,70005.0,69997.0,0.028614]
[1771108569623,0.014292,70005.0,70000.0,0.014293]
[1771108569923,0.028612,70005.0,70000.0,0.014293]
[1771108570523,0.028612,70005.0,69999.0,0.014293]
[1771108572527,0.01432,70005.0,69999.0,0.014293]
[1771108573320,0.01432,70005.0,70000.0,0.014293]
[1771108573920,0.01432,70005.0,70001.0,0.014293]
[1771108574429,0.01432,70005.0,70001.0,0.028586]
[1771108574635,0.01432,70005.0,70002.0,0.014293]
[1771108576732,0.01432,70005.0,70004.0,0.014292]
[1771108579129,0.01432,70005.0,70003.0,0.014292]
[1771108580933,0.01432,70005.0,70003.0,0.028584]
[1771108582233,0.01432,70005.0,70003.0,0.014292]
[1771108584434,0.01432,70005.0,69996.0,0.10510654]
[1771108584435,0.014298,69977.0,69970.0,0.10510654]
[1771108584636,0.014294,69997.0,69974.0,0.014298]
[1771108584637,0.014297,69981.0,69974.0,0.014298]
[1771108584830,0.014298,69977.0,69975.0,0.01432]
[1771108585037,0.014298,69978.0,69975.0,0.01432]
[1771108585434,0.014297,69979.0,69975.0,0.01432]
[1771108589140,0.014298,69978.0,69975.0,0.01432]
[1771108590343,0.014297,69979.0,69975.0,0.01432]
[1771108591035,0.014297,69981.0,69975.0,0.01432]
[1771108591245,0.028594,69981.0,69975.0,0.028618]
[1771108591646,0.014297,69982.0,69976.0,0.014298]
[1771108592741,0.014297,69982.0,69977.0,0.014298]
[1771108593047,0.014297,69982.0,69976.0,0.014298]
[1771108593345,0.028594,69982.0,69976.0,0.014298]
[1771108593542,0.014297,69982.0,69976.0,0.014298]
[1771108594045,0.014297,69981.0,69976.0,0.014298]
[1771108594646,0.014297,69982.0,69976.0,0.014298]
[1771108595445,0.014297,69982.0,69977.0,0.014298]
[1771108595846,0.014297,69983.0,69977.0,0.014298]
[1771108597146,0.01432,69989.0,69984.0,0.014296]
[1771108597338,0.014296,69986.0,69980.0,0.014297]
[1771108597540,0.014296,69987.0,69981.0,0.014297]
[1771108597946,0.014296,69987.0,69982.0,0.014297]
[1771108599148,0.014296,69988.0,69982.0,0.014297]
[1771108599446,0.42904411,70032.0,69987.0,0.014296]
[1771108599447,0.04443102,70000.0,69987.0,0.014296]
[1771108599657,0.01432,69996.0,69987.0,0.10510654]
[1771108599849,0.01432,69996.0,69993.0,0.014294]
[1771108600044,0.01432,69996.0,69989.0,0.028615]
[1771108600349,0.01432,69996.0,69995.0,0.014294]
[1771108600550,0.01432,70001.0,69998.0,0.014293]
[1771108600753,0.01432,70001.0,69996.0,0.014294]
[1771108600951,0.01432,70003.0,69999.0,0.014293]
[1771108603055,0.01432,70003.0,69998.0,0.014293]
[1771108604251,0.01432,70003.0,69997.0,0.014294]
[1771108605456,0.028613,70003.0,69997.0,0.014294]
[1771108608859,0.014293,70003.0,69997.0,0.014294]
[1771108609158,0.028613,70003.0,69997.0,0.014294]
[1771108613463,0.029613,70003.0,69997.0,0.014294]
[1771108614364,0.028613,70003.0,69997.0,0.014294]
[1771108614557,0.014293,70002.0,69997.0,0.014294]
[1771108615161,0.014293,70002.0,69996.0,0.014294]
[1771108616659,0.014293,70000.0,69995.0,0.028614]
[1771108617056,0.014293,70001.0,69995.0,0.13296609]
[1771108617362,0.014293,70000.0,69995.0,0.028614]
[1771108620662,0.014293,69999.0,69995.0,0.01432]
[1771108621867,0.014293,70000.0,69995.0,0.01432]
[1771108623565,0.014293,69999.0,69995.0,0.01432]
[1771108624364,0.014294,69998.0,69995.0,0.01432]
[1771108627261,0.014293,70000.0,69995.0,0.01432]
[1771108627262,0.014293,69999.0,69995.0,0.01432]
[1771108629770,0.014294,69998.0,69995.0,0.01432]
[1771108632067,0.014293,70000.0,69995.0,0.01432]
[1771108632068,0.014294,69996.0,69995.0,0.01432]
[1771108632573,0.014294,69998.0,69995.0,0.01432]
[1771108636079,0.014293,70000.0,69995.0,1e-06]
[1771108636080,0.014293,69999.0,69995.0,1e-06]
[1771108636274,0.014293,70000.0,69995.0,1e-06]
[1771108636275,0.014294,69998.0,69995.0,1e-06]
[1771108639381,0.014293,70000.0,69995.0,1e-06]
[1771108640777,0.01432,70003.0,69996.0,0.014294]
[1771108640980,0.01123262,70017.0,69995.0,0.10399401]
[1771108640981,0.14296,70017.0,70003.0,0.10399301]
[1771108641180,0.14296,70017.0,70011.0,0.014291]
[1771108641181,0.01432,70016.0,70011.0,0.014291]
[1771108641380,0.01432,70016.0,70009.0,0.01432]
[1771108641381,0.01429,70015.0,70009.0,0.01432]
[1771108641781,0.01429,70014.0,70009.0,0.01432]
[1771108642180,0.01429,70015.0,70009.0,0.01432]
[1771108642380,0.02861,70016.0,70009.0,0.028611]
[1771108642881,0.01429,70015.0,70009.0,0.028611]
[1771108643184,0.001,70017.0,70013.0,0.01429]
[1771108643376,0.01532,70017.0,70003.0,0.10399037]
[1771108643682,0.01532,70017.0,70012.0,0.014291]
[1771108643885,0.01432,70017.0,70012.0,0.014291]
[1771108644377,0.01429,70015.0,70008.0,0.01432]
[1771108644772,0.15420054,70023.0,70008.0,0.01432]
[1771108644773,0.01432,70018.0,70008.0,0.01432]
[1771108644974,0.014291,70011.0,70008.0,0.01432]
[1771108647285,0.014291,70013.0,70008.0,0.01432]
[1771108648685,0.014291,70012.0,70008.0,0.01432]
[1771108649980,0.01429,70014.0,70008.0,0.028611]
[1771108650179,0.01429,70013.0,70008.0,0.01432]
[1771108650581,0.01429,70014.0,70008.0,0.01432]
[1771108651086,0.01432,70018.0,70008.0,0.042902]
[1771108651286,0.01429,70015.0,70008.0,0.042902]
[1771108651487,0.01429,70014.0,70008.0,0.028611]
[1771108651688,0.01429,70016.0,70009.0,0.014291]
[1771108652194,0.01429,70015.0,70009.0,0.014291]
[1771108652587,0.01429,70017.0,70008.0,0.028611]
[1771108652984,0.01429,70017.0,70009.0,0.11700616]
[1771108653184,0.02858,70017.0,70009.0,0.10271516]
[1771108653386,0.01429,70017.0,70009.0,0.10271516]
[1771108653581,0.01429,70017.0,70010.0,0.014291]
[1771108653786,0.01429,70017.0,70011.0,0.01432]
[1771108655087,0.01429,70017.0,70011.0,0.028611]
[1771108655689,0.028609,70019.0,70011.0,0.028611]
[1771108655690,0.028609,70019.0,70012.0,0.014291]
[1771108655991,0.014289,70018.0,70012.0,0.014291]
[1771108656386,0.014289,70020.0,70011.0,0.028611]
[1771108656586,0.01429,70015.0,70011.0,0.01432]
[1771108656991,0.01429,70016.0,70011.0,0.01432]
[1771108657591,0.01429,70014.0,70011.0,0.01432]
[1771108660293,0.01429,70015.0,70011.0,0.01432]
[1771108660493,0.01429,70018.0,70011.0,0.01432]
[1771108660697,0.01429,70017.0,70011.0,0.01432]
[1771108663793,0.01429,70016.0,70011.0,0.01432]
[1771108664492,0.01429,70017.0,70011.0,0.028611]
[1771108666098,0.01429,70016.0,70011.0,0.01432]
[1771108667801,0.01429,70017.0,70011.0,0.01432]
[1771108669002,0.014289,70019.0,70011.0,0.01432]
[1771108669301,0.01429,70016.0,70011.0,0.01432]
[1771108672600,0.014289,70018.0,70011.0,0.01432]
[1771108672601,0.01429,70017.0,70011.0,0.028611]
[1771108673604,0.014289,70018.0,70011.0,0.028611]
[1771108673804,0.01429,70017.0,70011.0,0.028611]
[1771108674705,0.01429,70016.0,70011.0,0.01432]
[1771108678905,0.01429,70017.0,70011.0,0.028611]
[1771108679097,0.14292,70026.0,70012.0,0.014291]
[1771108679302,0.014289,70022.0,70015.0,0.01429]
[1771108680207,0.014289,70022.0,70015.0,0.02858]
[1771108680420,0.014288,70023.0,70016.0,0.01429]
[1771108680708,0.014286,70034.0,70027.0,0.014287]
[1771108681010,0.014286,70034.0,70027.0,0.01432]
[1771108681211,0.014286,70033.0,70027.0,0.01432]
[1771108681511,0.014287,70032.0,70027.0,0.01432]
[1771108681709,0.014287,70031.0,70027.0,0.01432]
[1771108682610,0.014287,70030.0,70027.0,0.01432]
[1771108684710,0.014285,70042.0,70030.0,0.09815344]
[1771108684915,0.014285,70038.0,70030.0,0.12676044]
[1771108685211,0.014286,70037.0,70030.0,0.12676044]
[1771108685611,0.014286,70036.0,70030.0,0.11247344]
[1771108686306,0.014286,70036.0,70030.0,0.12676044]
[1771108686510,0.014285,70039.0,70031.0,0.11244044]
[1771108686715,0.014284,70047.0,70038.0,0.09815344]
[1771108686910,0.014283,70050.0,70043.0,0.09815344]
[1771108687110,0.0455037,70052.0,70046.0,0.11243744]
[1771108687420,0.014282,70052.0,70048.0,0.09815344]
[1771108687611,0.014282,70054.0,70048.0,0.09815344]
[1771108687917,0.014282,70056.0,70049.0,0.09815344]
[1771108688214,0.10088453,70075.0,70051.0,0.09815344]
[1771108688512,0.0104302,70068.0,70057.0,0.09815344]
[1771108688712,0.014279,70067.0,70058.0,0.09815344]
[1771108688912,0.014279,70067.0,70059.0,0.01432]
[1771108689113,0.01428,70063.0,70059.0,0.11247344]
[1771108689411,0.01428,70062.0,70059.0,0.01432]
[1771108689613,0.014281,70062.0,70059.0,0.11247344]
[1771108690015,0.014281,70062.0,70059.0,0.01432]
[1771108690205,0.01428,70064.0,70059.0,0.01432]
[1771108690515,0.01428,70062.0,70059.0,0.11247344]
[1771108691113,0.01428,70064.0,70059.0,0.12675444]
[1771108691505,0.01428,70064.0,70059.0,0.11247344]
[1771108691710,0.00628,70064.0,70059.0,0.01432]
[1771108692110,0.01428,70065.0,70060.0,0.09815344]
[1771108692413,0.028599,70070.0,70060.0,0.09815344]
[1771108692414,0.014279,70067.0,70060.0,0.09815344]
[1771108692710,0.14292,70072.0,70062.0,0.09815344]
[1771108692911,0.014279,70070.0,70063.0,0.11522772]
[1771108693111,0.014279,70068.0,70063.0,0.11522772]
[1771108693509,0.014279,70068.0,70063.0,0.01432]
[1771108694215,0.014279,70068.0,70063.0,0.0286]
[1771108694519,0.014279,70068.0,70063.0,0.01432]
[1771108694706,0.00927298,70068.0,70063.0,0.01432]
[1771108695021,0.014279,70067.0,70063.0,0.01432]
[1771108695519,0.014279,70069.0,70063.0,0.0286]
[1771108696518,0.014279,70069.0,70064.0,0.01428]
[1771108698011,0.014279,70068.0,70063.0,0.0286]
[1771108698214,0.014278,70073.0,70067.0,0.014279]
[1771108698416,0.014279,70072.0,70068.0,0.01432]
[1771108699116,0.014279,70071.0,70068.0,0.01432]
[1771108699621,0.014279,70070.0,70068.0,0.01432]
[1771108699924,0.014279,70069.0,70068.0,0.01432]
[1771108701218,0.014279,70072.0,70064.0,0.01432]
[1771108701219,0.01428,70065.0,70064.0,0.01432]
[1771108701924,0.01428,70064.0,70059.0,0.157161]
[1771108702223,0.01428,70064.0,70042.0,0.135584]
[1771108702224,0.01428,70066.0,70052.0,0.014282]
[1771108702422,0.014281,70058.0,70053.0,0.157122]
[1771108702619,0.01428,70066.0,70054.0,0.14284]
[1771108702924,0.014281,70058.0,70055.0,0.01432]
[1771108703119,0.014281,70060.0,70056.0,0.01432]
[1771108703322,0.014281,70060.0,70055.0,0.14284]
[1771108703627,0.014281,70057.0,70055.0,0.14284]
[1771108703927,0.014281,70058.0,70056.0,0.01432]
[1771108704227,0.014281,70061.0,70057.0,0.01432]
[1771108707625,0.01428,70063.0,70057.0,0.01432]
[1771108707626,0.114248,70060.0,70057.0,0.01432]
[1771108707825,0.114248,70062.0,70058.0,0.014281]
[1771108708027,0.114248,70061.0,70058.0,0.014281]
[1771108708226,0.114248,70064.0,70058.0,0.014281]
[1771108708630,0.0286,70065.0,70059.0,0.014281]
[1771108708631,0.114248,70063.0,70059.0,0.014281]
[1771108708832,0.128528,70064.0,70059.0,0.014281]
[1771108709326,0.114248,70063.0,70059.0,0.014281]
[1771108709827,0.114248,70062.0,70058.0,0.014281]
[1771108710329,0.114248,70061.0,70057.0,0.028601]
[1771108710531,0.128529,70061.0,70057.0,0.01432]
[1771108710730,0.114248,70060.0,70057.0,0.01432]
[1771108711132,0.114248,70059.0,70057.0,0.01432]
[1771108711333,0.114248,70060.0,70057.0,0.01432]
[1771108711832,0.114248,70059.0,70057.0,0.01432]
[1771108712022,0.014281,70061.0,70057.0,0.01432]
[1771108712023,0.114248,70060.0,70057.0,0.01432]
[1771108712428,0.114248,70059.0,70057.0,0.01432]
[1771108712630,0.128528,70062.0,70057.0,0.01432]
[1771108712829,0.114248,70061.0,70057.0,0.01432]
[1771108713234,0.114248,70060.0,70057.0,0.01432]
[1771108713429,0.114248,70061.0,70057.0,0.01432]
[1771108713831,0.114248,70060.0,70057.0,0.01432]
[1771108714032,0.114248,70061.0,70057.0,0.01432]
[1771108714430,0.114248,70060.0,70057.0,0.01432]
[1771108714739,0.128529,70060.0,70057.0,0.01432]
[1771108714935,0.114248,70059.0,70057.0,0.01432]
[1771108716133,0.114248,70059.0,70053.0,0.014282]
[1771108716328,0.014281,70061.0,70054.0,0.028602]
[1771108716633,0.114248,70060.0,70055.0,0.014282]
[1771108717037,0.114248,70059.0,70055.0,0.014282]
[1771108717337,0.128529,70060.0,70054.0,0.028602]
[1771108717536,0.114248,70060.0,70055.0,0.014282]
[1771108717738,0.114248,70059.0,70055.0,0.014282]
[1771108717933,0.114248,70060.0,70055.0,0.014282]
[1771108718130,0.114248,70060.0,70054.0,0.028602]
[1771108718332,0.114248,70059.0,70055.0,0.014282]
[1771108718628,0.014281,70061.0,70054.0,0.028602]
[1771108718831,0.014281,70061.0,70055.0,0.014282]
[1771108719029,0.114248,70060.0,70055.0,0.014282]
[1771108719232,0.114248,70060.0,70054.0,0.028602]
[1771108719429,0.114248,70059.0,70055.0,0.01432]
[1771108719629,0.014281,70061.0,70056.0,0.01432]
[1771108719630,0.128529,70061.0,70056.0,0.01432]
[1771108719833,0.114248,70060.0,70056.0,0.01432]
[1771108720038,0.114248,70060.0,70054.0,0.014282]
[1771108720240,0.114248,70059.0,70051.0,0.157122]
[1771108720540,0.114248,70060.0,70054.0,0.014282]
[1771108720735,0.014281,70061.0,70055.0,0.028602]
[1771108720934,0.114248,70060.0,70055.0,0.028602]
[1771108721441,0.114248,70059.0,70055.0,0.028602]
[1771108721640,0.114248,70060.0,70055.0,0.028602]
[1771108722142,0.014281,70061.0,70055.0,0.028602]
[1771108722337,0.114248,70059.0,70055.0,0.028602]
[1771108722537,0.114248,70060.0,70055.0,0.028602]
[1771108722741,0.128529,70060.0,70055.0,0.01432]
[1771108722936,0.114248,70059.0,70055.0,0.01432]
[1771108723241,0.128529,70059.0,70055.0,0.01432]
[1771108723444,0.114248,70058.0,70055.0,0.01432]
[1771108727433,0.014283,70049.0,70042.0,0.014284]
[1771108727748,0.014283,70050.0,70043.0,0.014284]
[1771108728045,0.028603,70051.0,70045.0,0.014284]
[1771108728244,0.114248,70050.0,70045.0,0.014284]
[1771108728444,0.128531,70050.0,70044.0,0.01432]
[1771108728746,0.114248,70049.0,70044.0,0.028604]
[1771108728938,0.014283,70050.0,70044.0,0.028604]
[1771108729139,0.128531,70050.0,70044.0,0.028604]
[1771108729341,0.114248,70049.0,70044.0,0.028604]
[1771108729536,0.114248,70049.0,70045.0,0.014284]
[1771108729744,0.114248,70048.0,70044.0,0.028604]
[1771108730047,0.014283,70050.0,70044.0,0.028604]
[1771108730048,0.114248,70050.0,70044.0,0.028604]
[1771108730243,0.114248,70049.0,70044.0,0.01432]
[1771108730546,0.128531,70049.0,70044.0,0.01432]
[1771108730745,0.114248,70048.0,70044.0,0.01432]
[1771108730943,0.114248,70048.0,70044.0,0.028604]
[1771108731138,0.114248,70047.0,70044.0,0.028604]
[1771108731338,0.014283,70049.0,70044.0,0.01432]
[1771108731649,0.014283,70048.0,70044.0,0.01432]
[1771108731843,0.128531,70048.0,70045.0,0.01432]
[1771108732150,0.114248,70047.0,70044.0,0.01432]
[1771108732551,0.114248,70046.0,70044.0,0.01432]
[1771108732851,0.114248,70047.0,70044.0,0.01432]
[1771108733251,0.114248,70046.0,70044.0,0.01432]
[1771108733452,0.014283,70048.0,70044.0,0.01432]
[1771108733453,0.128532,70047.0,70044.0,0.01432]
[1771108733652,0.014284,70047.0,70044.0,0.01432]
[1771108733854,0.114248,70046.0,70044.0,0.01432]
[1771108734357,0.128532,70045.0,70039.0,0.028605]
[1771108734555,0.014284,70045.0,70039.0,0.028605]
[1771108734763,0.114248,70044.0,70039.0,0.028605]
[1771108735166,0.114248,70043.0,70039.0,0.028605]
[1771108735368,0.014284,70045.0,70039.0,0.028605]
[1771108735369,0.114248,70044.0,70039.0,0.028605]
[1771108736165,0.114248,70043.0,70039.0,0.028605]
[1771108736463,0.014284,70045.0,70039.0,0.028605]
[1771108736464,0.114248,70044.0,70039.0,0.04289]
[1771108736867,0.114248,70043.0,70040.0,0.014285]
[1771108737060,0.128532,70046.0,70040.0,0.014285]
[1771108737262,0.128532,70045.0,70039.0,0.014285]
[1771108737461,0.028604,70047.0,70040.0,0.014285]
[1771108737462,0.128532,70046.0,70040.0,0.014285]
[1771108737862,0.114248,70045.0,70040.0,0.014285]
[1771108738068,0.128532,70045.0,70039.0,0.014285]
[1771108738364,0.114248,70044.0,70039.0,0.014285]
[1771108738766,0.114248,70043.0,70039.0,0.014285]
[1771108738969,0.114248,70044.0,70039.0,0.014285]
[1771108739368,0.114248,70043.0,70039.0,0.014285]
[1771108739568,0.114248,70045.0,70039.0,0.014285]
[1771108739768,0.128532,70045.0,70039.0,0.014285]
[1771108739969,0.114248,70044.0,70039.0,0.014285]
[1771108740369,0.21664692,70044.0,70039.0,0.014285]
[1771108740671,0.114248,70043.0,70039.0,0.014285]
[1771108741172,0.114248,70042.0,70039.0,0.014285]
[1771108741371,0.114248,70043.0,70039.0,0.014285]
[1771108741970,0.114248,70042.0,70038.0,0.014285]
[1771108742159,0.114248,70043.0,70038.0,0.014285]
[1771108742567,0.114248,70042.0,70038.0,0.014285]
[1771108742768,0.114248,70043.0,70038.0,0.014285]
[1771108743173,0.114248,70042.0,70038.0,0.014285]
[1771108743368,0.114248,70041.0,70038.0,0.014285]
[1771108743570,0.114248,70043.0,70038.0,0.014285]
[1771108744074,0.114248,70042.0,70039.0,0.014285]
[1771108744274,0.014284,70044.0,70038.0,0.014285]
[1771108744474,0.128532,70044.0,70038.0,0.014285]
[1771108744674,0.114248,70043.0,70038.0,0.014285]
[1771108745174,0.114248,70042.0,70038.0,0.014285]
[1771108745474,0.114248,70043.0,70038.0,0.014285]
[1771108745975,0.114248,70042.0,70038.0,0.014285]
[1771108746168,0.114248,70043.0,70039.0,0.014285]
[1771108746370,0.114248,70044.0,70039.0,0.014285]
[1771108746769,0.028604,70045.0,70039.0,0.014285]
[1771108746770,0.114248,70043.0,70039.0,0.014285]
[1771108746974,0.114248,70044.0,70039.0,0.014285]
[1771108747374,0.114248,70043.0,70039.0,0.014285]
[1771108747576,0.128532,70044.0,70038.0,0.014285]
[1771108747771,0.23093092,70044.0,70037.0,0.028605]
[1771108748075,0.114248,70043.0,70039.0,0.014285]
[1771108748273,0.014282,70055.0,70047.0,0.014283]
[1771108748476,0.014282,70053.0,70046.0,0.028568]
[1771108748673,0.01432,70054.0,70047.0,0.014283]
[1771108748873,0.014282,70053.0,70047.0,0.014283]
[1771108749276,0.028602,70054.0,70048.0,0.014283]
[1771108749677,0.028602,70054.0,70049.0,0.014283]
[1771108750078,0.01432,70054.0,70050.0,0.014283]
[1771108750279,0.01432,70058.0,70057.0,0.014281]
[1771108750879,0.01432,70058.0,70055.0,0.014282]
[1771108751477,0.014281,70060.0,70055.0,0.014282]
[1771108751681,0.01432,70059.0,70055.0,0.014282]
[1771108752182,0.01432,70058.0,70055.0,0.014282]
[1771108752779,0.10239892,70063.0,70056.0,0.014282]
[1771108753078,0.014281,70059.0,70055.0,0.014282]
[1771108753280,0.01432,70058.0,70055.0,0.014282]
[1771108754684,0.01432,70058.0,70051.0,0.014283]
[1771108754885,0.01432,70058.0,70055.0,0.014282]
[1771108755485,0.01432,70058.0,70053.0,0.014282]
[1771108756187,0.014281,70057.0,70050.0,0.01432]
[1771108756380,0.014282,70056.0,70050.0,0.01432]
[1771108756581,0.014282,70053.0,70050.0,0.01432]
[1771108757087,0.014282,70054.0,70050.0,0.01432]
[1771108758585,0.014282,70056.0,70050.0,0.01432]
[1771108758978,0.014281,70057.0,70050.0,0.028603]
[1771108759181,0.028601,70059.0,70051.0,0.014282]
[1771108759586,0.014281,70058.0,70051.0,0.014282]
[1771108759776,0.014281,70058.0,70051.0,0.028565]
[1771108760182,0.1623541,70058.0,70051.0,0.014282]
[1771108760380,0.057126,70058.0,70051.0,0.014282]
[1771108761085,0.014281,70057.0,70051.0,0.014282]
[1771108761585,0.057126,70058.0,70051.0,0.014282]
[1771108762081,0.042845,70058.0,70051.0,0.014282]
[1771108762488,0.042845,70058.0,70053.0,0.014282]
[1771108762988,0.042845,70058.0,70048.0,0.01432]
[1771108762989,0.014283,70052.0,70048.0,0.01432]
[1771108763298,0.014283,70049.0,70042.0,0.014284]
[1771108763493,0.028603,70048.0,70042.0,0.014284]
[1771108763792,0.028603,70048.0,70040.0,0.014285]
[1771108763994,0.028603,70048.0,70042.0,0.014284]
[1771108764192,0.01432,70048.0,70042.0,0.014284]
[1771108764393,0.01432,70048.0,70043.0,0.014284]
[1771108764994,0.01432,70048.0,70042.0,0.014284]
[1771108765395,0.01432,70048.0,70043.0,0.014284]
[1771108765688,0.01432,70048.0,70039.0,0.01432]
[1771108765894,0.01432,70048.0,70041.0,0.014285]
[1771108766388,0.01432,70048.0,70043.0,0.014284]
[1771108766695,0.057167,70048.0,70040.0,0.014285]
[1771108767092,0.01432,70047.0,70039.0,0.01432]
[1771108767291,0.01432,70047.0,70043.0,0.014284]
[1771108767788,0.01432,70047.0,70041.0,0.014285]
[1771108767986,0.01432,70047.0,70043.0,0.014284]
[1771108770294,0.01432,70047.0,70042.0,0.014284]
[1771108770596,0.01432,70047.0,70041.0,0.014285]
[1771108770793,0.01432,70047.0,70042.0,0.014285]
[1771108770991,0.01432,70047.0,70043.0,0.014284]
[1771108772894,0.01432,70047.0,70041.0,0.014285]
[1771108773092,0.01432,70047.0,70043.0,0.014284]
[1771108773697,0.028564,70046.0,70042.0,0.014284]
[1771108773997,0.028564,70046.0,70043.0,0.014284]
[1771108774200,0.028564,70046.0,70042.0,0.014284]
[1771108774404,0.028564,70046.0,70041.0,0.014285]
[1771108774902,0.014284,70045.0,70039.0,0.01432]
[1771108775101,0.014284,70044.0,70039.0,0.01432]
[1771108775801,0.057132,70046.0,70040.0,0.014285]
[1771108776006,0.014284,70045.0,70040.0,0.014285]
[1771108776398,0.014284,70044.0,70038.0,0.014285]
[1771108776598,0.014284,70044.0,70038.0,0.02857]
[1771108776907,0.014284,70045.0,70039.0,0.014285]
[1771108777201,0.028564,70044.0,70039.0,0.014285]
[1771108777795,0.014284,70045.0,70039.0,0.014285]